Cogmind - Beta 13 @@@ ROGUE MODE // 2024.05.08 @ 14:40:42 Player: Chickoo Result: Destroyed by B-86 Titan with Railgun Performance ------------- Evolutions (6) 3000 Regions Visited (16) 3200 Robots Destroyed (102) 510 Value Destroyed (3190) 3190 Prototype IDs (43) 860 Alien Tech Used (0) 0 Bonus (927) 927 TOTAL SCORE: 11687 Bonus ------- High Alert Combat Kills 60 Follower Combat Kills 446 Aligned with FarCom 300 Met Data Miner 300 Friendly Fire -179 Cogmind --------- Core Integrity 0/1150 Matter 30/300 Energy 100/100 System Corruption 9% Temperature Cool (9) Movement Flying (40) Location -4/Factory Parts ------- > --- POWER (2) -------- (None) > --- PROPULSION (6) --- Biomechanical Wings > --- UTILITY (9) ------ Transmission Jammer Graphene Brace Hacking Suite System Shield System Shield > --- WEAPON (2) ------- (None) > --- INVENTORY (5) ---- Micro-nuke Launcher Advanced Datajack Molecular Deconstructor Force Lance Peak State ------------ > --- POWER ------------ Light Nuclear Core > --- PROPULSION ------- Improved VTOL Module Flying Fortress v7 > --- UTILITY ---------- Large Storage Unit Improved Sensor Array Hardened Light Armor Plating Improved Medium Armor Plating Advanced Shield Generator Hacking Suite System Shield > --- WEAPON ----------- Molecular Deconstructor > --- INVENTORY -------- Micro Nuclear Core Improved Flight Unit Improved Flight Unit Improved VTOL Module Nuclear Pulse Thruster Cooled Cesium-ion Thruster Biomechanical Wings Compact Matter Pod Structural Scanner Microactuators Transmission Jammer Missile Launcher Precision Grenade Launcher Power Sword Spear [Rating: 85] Favorites ----------- Power Ion Engine Engine Ion Engine Power Core Light Nuclear Core Propulsion Light Treads Treads Light Treads Leg Carbon-fiber Leg Flight Unit Improved VTOL Module Utility Hardened Light Armor Plating Device Structural Scanner Storage Large Storage Unit Processor Improved System Guard Hackware Hacking Suite Protection Hardened Light Armor Plating Weapon Autogun Energy Gun Particle Gun Ballistic Gun Autogun Ballistic Cannon Improved Light Cannon Launcher Rocket Launcher Special Weapon Molecular Deconstructor Impact Weapon Shock Maul Slashing Weapon Greatsword Piercing Weapon Spear Special Melee Weapon Improved Datajack Build | -11 -10 -10 -10 -9 -8 -7 -6 -6 -6 -6 -5 -5 -5 -5 -5 -4 ------- Run | Yrd Mat Min Exi Min Mat Fac Fac Low Low Dat Pro Fac Was Fac Ext Fac Slots Evolved 12 | . . . . . 4 2 2 . . . . 2 . . . 2 Power 1 | . . . . . . . . . . . . . . . . 1 Propulsion 4 | . . . . . 2 . 1 . . . . 1 . . . . Utility 7 | . . . . . 2 2 1 . . . . 1 . . . 1 Weapon . | . . . . . . . . . . . . . . . . . Parts Attached 167 | 6 6 4 1 3 36 11 7 . 5 . 4 5 . 11 21 47 Power 17 | 1 1 1 . . 1 1 . . 1 . . . . 2 5 4 Engine 7 | 1 1 1 . . . . . . . . . . . 1 2 1 Core 10 | . . . . . 1 1 . . 1 . . . . 1 3 3 Reactor . | . . . . . . . . . . . . . . . . . Propulsion 23 | 2 . . . . 8 . 1 . . . . 1 . 4 . 7 Treads 5 | 2 . . . . 3 . . . . . . . . . . . Leg 4 | . . . . . 4 . . . . . . . . . . . Wheel . | . . . . . . . . . . . . . . . . . Hover . | . . . . . . . . . . . . . . . . . Flight 14 | . . . . . 1 . 1 . . . . 1 . 4 . 7 Utility 62 | 1 3 . 1 1 10 8 3 . 2 . 1 4 . 3 6 19 Device 30 | . . . . . 1 4 . . 2 . 1 2 . 1 5 14 Storage 9 | 1 3 . 1 1 2 . . . . . . . . 1 . . Processor 1 | . . . . . . . . . . . . . . . . 1 Hackware 8 | . . . . . 1 . 1 . . . . 2 . . 1 3 Protection 14 | . . . . . 6 4 2 . . . . . . 1 . 1 Artifact . | . . . . . . . . . . . . . . . . . Weapon 65 | 2 2 3 . 2 17 2 3 . 2 . 3 . . 2 10 17 Energy Gun 3 | . . . . 1 1 . . . . . . . . . . 1 Energy Cannon . | . . . . . . . . . . . . . . . . . Ballistic Gun 14 | 2 2 1 . 1 8 . . . . . . . . . . . Ballistic Cannon 4 | . . . . . 3 1 . . . . . . . . . . Launcher 14 | . . 2 . . 2 . . . 1 . 1 . . 2 3 3 Special Weapon 3 | . . . . . . . . . 1 . . . . . 2 . Impact Weapon 4 | . . . . . 3 . . . . . . . . . . 1 Slashing Weapon 10 | . . . . . . 1 2 . . . 1 . . . 3 3 Piercing Weapon 12 | . . . . . . . 1 . . . 1 . . . 1 9 Special Melee Weapon 1 | . . . . . . . . . . . . . . . 1 . Unidentified Prototypes 4 | . . . . . 1 . . . 1 . . . . . . 2 Parts Lost 39 | . . . . . 1 1 1 . . . 2 . . 1 10 23 Power 5 | . . . . . . . . . . . . . . . 1 4 Propulsion 12 | . . . . . . . . . . . . . . 1 2 9 Utility 19 | . . . . . . 1 1 . . . 2 . . . 6 9 Weapon 3 | . . . . . 1 . . . . . . . . . 1 1 Highest Loss Streak 8 | . . . . . 1 1 1 . . . 1 . . 1 7 8 To Critical Strikes 1 | . . . . . . . . . . . . . . 1 . . Average Slot Usage (%) 79 | . 85 85 85 85 95 69 75 80 78 73 78 80 76 82 94 59 Engine 5 | . 14 14 14 14 8 . . . . . . . . 1 2 . Core 2 | . . . . . . 7 6 6 6 6 6 5 5 3 1 3 Treads 8 | . 28 28 28 28 1 . . . . . . . . . . . Leg 5 | . . . . . 32 . . . . . . . . . . . Flight 8 | . . . . . . 7 13 13 13 13 13 17 17 22 34 16 Device 6 | . . . . . . 12 13 13 13 13 12 17 11 11 9 13 Storage 8 | . 14 14 14 14 9 7 6 6 6 6 6 5 5 5 5 2 Hackware 7 | . . . . . 6 7 8 13 13 13 11 11 17 17 21 11 Protection 9 | . . . . . 16 17 16 13 13 13 13 11 11 11 6 1 Ballistic Gun 7 | . 28 24 14 11 11 1 . . . . . . . . . . Launcher 1 | . . 3 14 4 . . . . 3 . 4 3 . . . . Slashing Weapon 2 | . . . . . . 6 6 6 1 . 1 . . . . 1 Piercing Weapon 1 | . . . . . . . 3 6 4 . 6 5 5 5 3 1 Naked Turns . | . . . . . . . . . . . . . . . . . Heaviest Build 54 | 11 48 22 52 52 45 50 49 47 51 49 52 54 45 50 36 38 Greatest Support 80 | 40 40 40 40 40 80 50 55 55 55 55 55 60 55 55 32 40 Greatest Overweight (x) 2 | . 1 . 1 1 2 . . . . . . . . . 1 2 Average Overweight (x) . | . . . . . . . . . . . . . . . . . Largest Inventory Capacity 20 | 8 20 10 20 20 15 15 15 15 15 15 15 15 15 15 10 10 Average Capacity 13 | 7 9 10 15 17 14 15 15 15 15 15 15 15 15 13 10 7 Most Carried 15 | 1 9 10 14 14 15 15 15 15 15 15 15 14 12 15 10 10 Average Carried 11 | . 5 9 12 14 13 14 14 15 14 15 14 11 12 12 7 7 Final Capacity 20 | 8 10 10 20 15 15 15 15 15 15 15 15 15 15 10 10 5 Final Carried 15 | 1 9 10 14 14 12 15 15 15 15 15 15 12 12 9 8 5 Class Distribution -------------------- 63% | Mutant 18% | Hacker-Mutant 11% | Hacker-Sprinter 4% | Commander-Mutant Dominant Class ---------------- Mutant | -10/Materials Mutant | -10/Mines Mutant | -10/Exiles Mutant | -9/Mines Mutant | -8/Materials Mutant | -7/Factory Commander-Mutant | -6/Factory Hacker-Mutant | -6/Lower Caves Hacker-Mutant | -6/Lower Caves Hacker-Mutant | -6/Data Miner Hacker-Mutant | -5/Proximity Caves Hacker-Mutant | -5/Factory Hacker-Mutant | -5/Waste Hacker-Mutant | -5/Factory Hacker-Sprinter | -5/Extension Hacker-Sprinter | -4/Factory Resources | -11 -10 -10 -10 -9 -8 -7 -6 -6 -6 -6 -5 -5 -5 -5 -5 -4 ----------- Run | Yrd Mat Min Exi Min Mat Fac Fac Low Low Dat Pro Fac Was Fac Ext Fac Matter Collected 3270 | 148 255 78 . 226 820 370 117 61 132 . 112 . . 150 511 290 Remotely . | . . . . . . . . . . . . . . . . . Salvage Created 3479 | . 203 60 . 220 856 526 138 48 76 . 194 . . . 713 445 Parts 160 | . 6 2 . 15 48 33 4 3 4 . 9 . . . 25 11 Haulers Intercepted 9 | . 1 . . . 3 3 1 . . . . . . . . 1 Recyclers Shooed 1 | . 1 . . . . . . . . . . . . . . . Parts Field Recycled . | . . . . . . . . . . . . . . . . . Retrieved Matter . | . . . . . . . . . . . . . . . . . Parts Self-Destructed 12 | . . . . . . . . 3 3 . 6 . . . . . Prevented 1 | . . . . . . . . 1 . . . . . . . . Kills | -11 -10 -10 -10 -9 -8 -7 -6 -6 -6 -6 -5 -5 -5 -5 -5 -4 ------- Run | Yrd Mat Min Exi Min Mat Fac Fac Low Low Dat Pro Fac Was Fac Ext Fac Combat Hostiles Destroyed 76 | . 4 7 . 10 13 7 . 1 7 . 13 . . . 8 6 Melee 20 | . . . . . . 7 . 1 . . 1 . . . 6 5 Guns 14 | . 4 1 . 1 8 . . . . . . . . . . . Cannons 2 | . . . . . 2 . . . . . . . . . . . AOE 40 | . . 6 . 9 3 . . . 7 . 12 . . . 2 1 Classes Destroyed 15 | . 4 1 . 1 4 1 1 . . . 2 . . . . 1 Worker 4 | . . . . 1 3 . . . . . . . . . . . Builder 8 | . . . . . 6 2 . . . . . . . . . . Hauler 9 | . 1 . . . 3 3 1 . . . . . . . . 1 Recycler 6 | . 1 1 . . 1 . . . . . . . . . 2 1 Operator 2 | . . . . . . . 1 . . . . . . . 1 . Drone 1 | . . . . . . . . . . . 1 . . . . . Swarmer 25 | . 3 3 . 7 1 . . . 4 . 7 . . . . . Cutter 2 | . . . . . . . . . . . . . . . . 2 Grunt 30 | . 1 . . 4 9 6 . . 2 . 4 . . . 4 . Duelist 2 | . . . . . 1 . . . 1 . . . . . . . Protector 1 | . . . . . . . . . . . 1 . . . . . Sentry 5 | . . . . . 1 . . . . . . . . . 4 . Hunter 3 | . . . . . 1 . . . . . . . . . . 2 Programmer 4 | . . . . . . 1 . 1 . . . . . . . 2 Assembled 4 | . . 4 . . . . . . . . . . . . . . Best Kill Streak 7 | . 4 5 . 4 7 2 1 1 7 . 6 . . . 4 2 Combat Bots Only 7 | . 3 4 . 4 5 2 . 1 7 . 6 . . . 3 1 Max Kills in Single Turn 5 | . 1 2 . 5 1 1 1 1 1 . 3 . . . 1 1 Gunslinging . | . . . . . . . . . . . . . . . . . Exploded 4 | . . 2 . 4 1 . . . 1 . 3 . . . 1 1 Melee 1 | . . . . . . 1 . 1 . . 1 . . . 1 1 Uniques/NPCs Destroyed . | . . . . . . . . . . . . . . . . . Combat | -11 -10 -10 -10 -9 -8 -7 -6 -6 -6 -6 -5 -5 -5 -5 -5 -4 -------- Run | Yrd Mat Min Exi Min Mat Fac Fac Low Low Dat Pro Fac Was Fac Ext Fac Hostile Shots Fired 476 | . 11 6 . 4 44 74 2 12 52 . 31 7 . 15 74 144 Missed 205 | . 4 2 . 1 13 28 1 6 26 . 15 4 . 5 38 62 Damage Taken 5885 | . 70 62 . 116 480 653 205 61 413 . 221 . . 225 847 2532 Core 1463 | . . 30 . 24 14 13 . 10 51 . . . . . 168 1153 Absorbed by Shields 347 | . . . . . . 46 32 24 94 . 81 . . . 70 . Redirected to Shielding 157 | . . . . . . . 104 . . . . . . . . 53 Regen/Repaired (Parts) 244 | . . . . . 244 . . . . . . . . . . . Core Remaining (%) 91 | 100 . . . 78 97 98 . . . . 92 . . . 83 . Volleys Fired 159 | . 19 13 . 10 74 5 . . 13 . 11 . . 3 8 3 Largest 2 | . 2 2 . 2 2 2 . . 1 . 1 . . 1 1 1 Hottest 98 | . 46 46 . 98 64 64 . . 36 . 36 . . 36 36 49 Shots Fired 259 | . 38 19 . 16 138 10 . . 13 . 11 . . 3 8 3 Gun 178 | . 38 12 . 10 110 8 . . . . . . . . . . Cannon 23 | . . . . . 21 2 . . . . . . . . . . Launcher 55 | . . 7 . 6 7 . . . 13 . 11 . . 3 5 3 Special 3 | . . . . . . . . . . . . . . . 3 . Kinetic 195 | . 38 12 . 4 131 10 . . . . . . . . . . Thermal 6 | . . . . 6 . . . . . . . . . . . . Explosive 55 | . . 7 . 6 7 . . . 13 . 11 . . 3 5 3 Electromagnetic . | . . . . . . . . . . . . . . . . . Robot Hit Streak 10 | . 4 6 . 4 9 4 . . 2 . 7 . . 10 3 1 Robot Miss Streak 9 | . 2 3 . 1 9 2 . . 2 . 4 . . . 2 . Penetration Max . | . . . . . . . . . . . . . . . . . Secondary Targets 3 | . 3 . . . . . . . . . . . . . . . Max Gunslinging Chain 1 | . 1 . . . . . . . . . . . . . . . Shots Hit Robots 269 | . 21 11 . 7 78 38 8 4 6 . 10 . . 3 48 35 Core Hits 171 | . 10 12 . 13 40 11 1 1 14 . 30 . . 3 18 18 Critical Kills 1 | . . . . . 1 . . . . . . . . . . . Critical Parts Destroyed 4 | . . . . . 3 . . . . . . . . . . 1 Critical Strikes 22 | . . . . . 4 5 . 2 . . . . . . 3 8 Destroy 2 | . . . . . 2 . . . . . . . . . . . Smash 3 | . . . . . 2 . . . . . . . . . . 1 Sever 13 | . . . . . . 5 . 1 . . . . . . 3 4 Impale 4 | . . . . . . . . 1 . . . . . . . 3 Melee Attacks 227 | . . . . . 12 58 20 11 1 . 10 3 . 2 53 57 Impact 20 | . . . . . 12 . . . . . . . . . . 8 Slashing 123 | . . . . . . 58 19 9 . . 4 . . . 12 21 Piercing 64 | . . . . . . . 1 2 1 . 6 3 . 2 21 28 Sneak Attacks 35 | . . . . . 5 6 1 . . . . . . . 20 3 Combat Hostiles 2 | . . . . . . . . . . . . . . . 2 . Follow-up Attacks 7 | . . . . . . . . 2 . . 4 . . . . 1 Damage Inflicted 12226 | . 262 544 . 575 2138 2093 397 150 918 . 1501 . . 285 1538 1825 Guns 1479 | . 262 125 . 84 925 83 . . . . . . . . . . Cannons 375 | . . . . . 332 43 . . . . . . . . . . Explosions 4527 | . . 419 . 491 461 . . . 918 . 1398 . . 285 262 293 Melee 5845 | . . . . . 420 1967 397 150 . . 103 . . . 1276 1532 Ramming . | . . . . . . . . . . . . . . . . . Kinetic 1818 | . 262 125 . 48 1257 126 . . . . . . . . . . Thermal 271 | . . . . 36 . . . . . . . . . 235 . . Explosive 4292 | . . 419 . 491 461 . . . 918 . 1398 . . 50 262 293 Electromagnetic . | . . . . . . . . . . . . . . . . . Impact 766 | . . . . . 420 . . . . . . . . . . 346 Slashing 3375 | . . . . . . 1967 355 127 . . 69 . . . 347 510 Piercing 1704 | . . . . . . . 42 23 . . 34 . . . 929 676 Highest Corruption 9 | . . . . . . 1 1 2 2 2 2 . 8 8 8 9 Average Corruption 4 | . . . . . . 1 1 1 2 2 2 . 8 8 8 7 Corruption Purged . | . . . . . . . . . . . . . . . . . Corruption Blocked . | . . . . . . . . . . . . . . . . . Effects 44 | . . . . . . . . 5 7 . 3 . 1 5 14 9 Message Errors 15 | . . . . . . . . 1 3 . 1 . . 3 3 4 Matter Fused 12 | . . . . . . . . 4 2 . . . . 1 3 2 Heat Flow Errors 5 | . . . . . . . . . 1 . . . . . 3 1 Energy Discharges 2 | . . . . . . . . . . . . . . . 2 . Parts Fused 1 | . . . . . . . . . . . 1 . . . . . Data Loss (minor) 5 | . . . . . . . . . . . 1 . 1 . 3 . Data Loss (major) 3 | . . . . . . . . . . . . . . 1 . 2 Alerts 1 | . . . . . . . . . 1 . . . . . . . Overload Shots . | . . . . . . . . . . . . . . . . . Overflow Damage 760 | . . 7 . 11 266 88 78 36 18 . 41 . . 19 17 179 Projectiles 8 | . . . . . 8 . . . . . . . . . . . Explosions 92 | . . 7 . 11 . . . . 18 . 37 . . 19 . . Melee 660 | . . . . . 258 88 78 36 . . 4 . . . 17 179 Knockbacks 8 | . . . . . 6 . . . . . . . . . . 2 Impact 5 | . . . . . 3 . . . . . . . . . . 2 Kinetic 3 | . . . . . 3 . . . . . . . . . . . Secondary . | . . . . . . . . . . . . . . . . . Self-Inflicted Damage 166 | . . . . 85 41 . . . 40 . . . . . . . Shots 5 | . . . . 2 1 . . . 2 . . . . . . . Rammed . | . . . . . . . . . . . . . . . . . Targets Rammed . | . . . . . . . . . . . . . . . . . Kicked . | . . . . . . . . . . . . . . . . . Crushed . | . . . . . . . . . . . . . . . . . Highest Temperature 285 | . 18 12 . 124 285 221 . . 208 . 43 . . 16 263 218 Average Temperature 58 | . 7 5 . 48 56 106 . . 46 . 15 . . 7 106 110 Received Heat Transfer 961 | . 30 . . 9 216 315 9 . 87 . 50 . . 36 176 33 Effects 1 | . . . . . 1 . . . . . . . . . . . Energy Bleed 1 | . . . . . 1 . . . . . . . . . . . Siege Activations . | . . . . . . . . . . . . . . . . . Robots Corrupted . | . . . . . . . . . . . . . . . . . Combat Hostiles . | . . . . . . . . . . . . . . . . . Parts Fried 11 | . . . . . 7 . . . . . . . . . . 4 Impact Corruptions 11 | . . . . . 9 . . . . . . . . . . 2 Robots Melted . | . . . . . . . . . . . . . . . . . Combat Hostiles . | . . . . . . . . . . . . . . . . . Parts Melted 1 | . . . . . . . . . . . . . . . . 1 Heat Transferred 224 | . . . . 74 . . . . . . . . . 150 . . Parts Sabotaged . | . . . . . . . . . . . . . . . . . Parts Stolen . | . . . . . . . . . . . . . . . . . Parts Stripped . | . . . . . . . . . . . . . . . . . Power Chain Reactions . | . . . . . . . . . . . . . . . . . Alert | -11 -10 -10 -10 -9 -8 -7 -6 -6 -6 -6 -5 -5 -5 -5 -5 -4 ------- Run | Yrd Mat Min Exi Min Mat Fac Fac Low Low Dat Pro Fac Was Fac Ext Fac Peak Influence 976 | . 90 192 . 290 291 232 158 . . . . 976 294 318 634 377 Initial 957 | . . 34 . . 35 115 52 . . . . 957 294 205 155 263 Average 167 | . 47 83 . 226 162 114 98 . . . . 904 294 240 410 221 Maximum Alert Level 3 | . . . . 1 1 1 . . . . . 3 1 1 2 1 Low Security (%) 66 | 100 100 100 . 21 64 91 100 . . . . . . . 4 46 Level 1 29 | . . . . 78 35 8 . . . . . . 100 100 49 53 Level 2 2 | . . . . . . . . . . . . . . . 45 . Level 3 . | . . . . . . . . . . . . 100 . . . . Level 4 . | . . . . . . . . . . . . . . . . . Level 5 . | . . . . . . . . . . . . . . . . . High Security . | . . . . . . . . . . . . . . . . . Max Security . | . . . . . . . . . . . . . . . . . Squads Dispatched 30 | . 3 . . . 3 9 3 . . . 1 1 . . 2 8 Investigation 13 | . 1 . . . 1 5 2 . . . . 1 . . 1 2 Extermination 3 | . . . . . . 1 . . . . . . . . . 2 Reinforcement 12 | . 2 . . . 2 2 1 . . . . . . . 1 4 Assault 2 | . . . . . . 1 . . . . 1 . . . . . Garrison . | . . . . . . . . . . . . . . . . . Intercept . | . . . . . . . . . . . . . . . . . Searches Triggered . | . . . . . . . . . . . . . . . . . Data Miner Redirects 1 | . . . . . . . . . . . . . . . . 1 Construction Impeded 1 | . . . . . 1 . . . . . . . . . . . Haulers Reinforced 3 | . . . . . . 2 . . . . . . . . . 1 Active Scanning Responses . | . . . . . . . . . . . . . . . . . Cargo Convoy Interrupts . | . . . . . . . . . . . . . . . . . Stealth | -11 -10 -10 -10 -9 -8 -7 -6 -6 -6 -6 -5 -5 -5 -5 -5 -4 --------- Run | Yrd Mat Min Exi Min Mat Fac Fac Low Low Dat Pro Fac Was Fac Ext Fac Distress Signals 11 | . 1 . . . 3 1 . . . . 1 . . . 3 2 Communications Jammed 9 | . . . . . . . . . . . . . . . . 9 Distress Signals . | . . . . . . . . . . . . . . . . . Times Spotted 150 | . 12 11 . 3 22 13 3 1 7 . 23 3 6 1 19 26 Peak Tracking Total 12 | . 7 4 . 2 4 4 1 1 7 . 12 4 6 2 5 6 Tactical Retreats 19 | . 1 . . . 4 2 . . . . 3 . . 2 1 6 Traps | -11 -10 -10 -10 -9 -8 -7 -6 -6 -6 -6 -5 -5 -5 -5 -5 -4 ------- Run | Yrd Mat Min Exi Min Mat Fac Fac Low Low Dat Pro Fac Was Fac Ext Fac Traps Triggered 6 | . 1 . . . . . . . . . . 1 . . 3 1 Indirectly . | . . . . . . . . . . . . . . . . . Trap Hack Attempts 11 | . . . . . . . . . . . . . . . 11 . Triggered . | . . . . . . . . . . . . . . . . . Disarmed . | . . . . . . . . . . . . . . . . . Reprogrammed 8 | . . . . . 6 . . . . . . . . . 2 . Reused 1 | . . . . . 1 . . . . . . . . . . . Traps Extracted . | . . . . . . . . . . . . . . . . . Installed . | . . . . . . . . . . . . . . . . . Triggered 3 | . . . . . 1 . . 2 . . . . . . . . Machines | -11 -10 -10 -10 -9 -8 -7 -6 -6 -6 -6 -5 -5 -5 -5 -5 -4 ---------- Run | Yrd Mat Min Exi Min Mat Fac Fac Low Low Dat Pro Fac Was Fac Ext Fac Machines Disabled 13 | . . . . . 2 2 2 . 1 . . . . 2 3 1 Max in Single Turn 2 | . . . . . 1 1 . . 1 . . . . 2 1 1 Garrison Access 3 | . . . . . 1 1 . . . . . . . . . 1 Machines Repaired . | . . . . . . . . . . . . . . . . . Machines Dismantled . | . . . . . . . . . . . . . . . . . Machines Sabotaged . | . . . . . . . . . . . . . . . . . Overloaded Fab Kills . | . . . . . . . . . . . . . . . . . Hacking | -11 -10 -10 -10 -9 -8 -7 -6 -6 -6 -6 -5 -5 -5 -5 -5 -4 --------- Run | Yrd Mat Min Exi Min Mat Fac Fac Low Low Dat Pro Fac Was Fac Ext Fac Machines Accessed 41 | . 1 1 2 . 7 9 4 . 1 4 . 3 . . 2 7 Terminals 22 | . 1 . . . 4 5 4 . . . . 2 . . 2 4 Fabricators 4 | . . . . . . 2 . . . . . . . . . 2 Repair Stations 1 | . . . . . 1 . . . . . . . . . . . Recycling Units 1 | . . . . . 1 . . . . . . . . . . . Scanalyzers 2 | . . . . . . 1 . . . . . 1 . . . . Garrison Access 3 | . . . . . 1 1 . . . . . . . . . 1 Total Hacks 164 | . 4 1 5 . 29 31 14 . 1 31 . 7 . . 7 34 Successful 100 | . 3 1 5 . 14 18 4 . 1 31 . 6 . . 2 15 Failed 63 | . 1 . . . 15 13 10 . . . . 1 . . 5 18 Catastrophic 11 | . . . . . 3 4 2 . . . . . . . 1 1 Database Lockouts 1 | . . . . . . . . . . . . . . . . 1 Manual 37 | . 1 . 1 . 8 6 6 . 1 . . . . 1 . 13 Terminals 87 | . 4 . . . 17 17 14 . . . . 4 . . 7 24 Fabricators 13 | . . . . . . 7 . . . . . . . . . 6 Repair Stations 7 | . . . . . 7 . . . . . . . . . . . Recycling Units 4 | . . . . . 4 . . . . . . . . . . . Scanalyzers 8 | . . . . . . 5 . . . . . 3 . . . . Garrison Access 7 | . . . . . 1 2 . . . . . . . . . 4 Terminal Hacks 71 | . 3 1 5 . 8 7 3 . 1 31 . 3 . . 2 7 Record 20 | . . . 4 . . . . . . 11 . . . . 1 4 Part Schematic 11 | . . . . . . . . . . 11 . . . . . . Robot Schematic 7 | . . . . . . 1 . . . 6 . . . . . . Robot Analysis 3 | . 2 . . . . 1 . . . . . . . . . . Prototype ID Bank 3 | . . . . . . . . . . 3 . . . . . . Open Door 2 | . . 1 . . . . . . 1 . . . . . . . Open DSF 1 | . . . . . . 1 . . . . . . . . . . Alert Level 4 | . . . . . 1 . . . . . . 1 . . 1 1 Unreport Threat 4 | . . . . . 1 2 . . . . . 1 . . . . Locate Traps 2 | . 1 . . . . . . . . . . 1 . . . . Reprogram Traps 1 | . . . . . 1 . . . . . . . . . . . Maintenance Status 2 | . . . . . 1 . 1 . . . . . . . . . Security Status 1 | . . . . . . 1 . . . . . . . . . . Patrol Status 2 | . . . . . 1 1 . . . . . . . . . . Transport Status 1 | . . . . . 1 . . . . . . . . . . . Recall Investigation 1 | . . . . . . . . . . . . . . . . 1 Hauler Manifests 1 | . . . . . 1 . . . . . . . . . . . Zone Layout 4 | . . . . . 1 . 2 . . . . . . . . 1 Derelict Proto ID Bank 1 | . . . 1 . . . . . . . . . . . . . Fabricator Hacks 10 | . . . . . . 5 . . . . . . . . . 5 Network Status 2 | . . . . . . 1 . . . . . . . . . 1 Load Schematic 4 | . . . . . . 2 . . . . . . . . . 2 Build 4 | . . . . . . 2 . . . . . . . . . 2 Repair Station Hacks 4 | . . . . . 4 . . . . . . . . . . . Scan Component 2 | . . . . . 2 . . . . . . . . . . . Repair 2 | . . . . . 2 . . . . . . . . . . . Recycling Unit Hacks . | . . . . . . . . . . . . . . . . . Scanalyzer 7 | . . . . . . 4 . . . . . 3 . . . . Insert Component 5 | . . . . . . 2 . . . . . 3 . . . . Analyze 2 | . . . . . . 2 . . . . . . . . . . Garrison Access Hacks 2 | . . . . . 1 . . . . . . . . . . 1 Seal Access 2 | . . . . . 1 . . . . . . . . . . 1 Unauthorized Hacks 6 | . . . . . 1 2 1 . . . . . . . . 2 Terminals 5 | . . . . . . 2 1 . . . . . . . . 2 Assimilate 2 | . . . . . . 1 . . . . . . . . . 1 Botnet 3 | . . . . . . 1 1 . . . . . . . . 1 Fabricators . | . . . . . . . . . . . . . . . . . Repair Stations . | . . . . . . . . . . . . . . . . . Recycling Units 1 | . . . . . 1 . . . . . . . . . . . Reject 1 | . . . . . 1 . . . . . . . . . . . Scanalyzers . | . . . . . . . . . . . . . . . . . Garrison Access . | . . . . . . . . . . . . . . . . . Data Cores Recovered 1 | . . . . . . . . . . . . . . . 1 . Used . | . . . . . . . . . . . . . . . . . Hacking Detections 30 | . 1 . . . 6 8 4 . . . . 2 . . 2 7 Full Trace Events 11 | . . . . . . 5 2 . . . . 1 . . 1 2 Feedback Events . | . . . . . . . . . . . . . . . . . Feedback Blocked . | . . . . . . . . . . . . . . . . . Robot Schematics Acquired 7 | . . . . . . 1 . . . 6 . . . . . . Robots Built 4 | . . . . . . 4 . . . . . . . . . . Authchips . | . . . . . . . . . . . . . . . . . Time 268 | . . . . . . 268 . . . . . . . . . . Total Robot Build Rating 16 | . . . . . . 16 . . . . . . . . . . Part Schematics Acquired 12 | . . . . . . 1 . . . 11 . . . . . . Parts Built 1 | . . . . . . . . . . . . . . . . 1 Authchips . | . . . . . . . . . . . . . . . . . Time 201 | . . . . . . . . . . . . . . . . 201 Total Part Build Rating 6 | . . . . . . . . . . . . . . . . 6 Parts Repaired 2 | . . . . . 2 . . . . . . . . . . . Time 52 | . . . . . 52 . . . . . . . . . . . Parts Recycled . | . . . . . . . . . . . . . . . . . Recycled Matter . | . . . . . . . . . . . . . . . . . Retrieved Matter . | . . . . . . . . . . . . . . . . . Retrieved Components . | . . . . . . . . . . . . . . . . . Parts Scanalyzed 2 | . . . . . . 2 . . . . . . . . . . Part Schematics Acquired 1 | . . . . . . 1 . . . . . . . . . . Parts Damaged . | . . . . . . . . . . . . . . . . . Bothacking | -11 -10 -10 -10 -9 -8 -7 -6 -6 -6 -6 -5 -5 -5 -5 -5 -4 ------------ Run | Yrd Mat Min Exi Min Mat Fac Fac Low Low Dat Pro Fac Was Fac Ext Fac Used RIF Installer . | . . . . . . . . . . . . . . . . . Robots Hacked 2 | . . . . . . . . . . . . . . . 2 . Non-combat 1 | . . . . . . . . . . . . . . . 1 . Combat 1 | . . . . . . . . . . . . . . . 1 . Robot Hacks Applied 2 | . . . . . . . . . . . . . . . 2 . parse_system 2 | . . . . . . . . . . . . . . . 2 . Relay Couplers Released 3 | . . . . . . 3 . . . . . . . . . . Machine Destruction 3 | . . . . . . 3 . . . . . . . . . . Fabnet Peak Effective % . | . . . . . . . . . . . . . . . . . Robots Rewired 9 | . . . . . . . . . . . . . . . 9 . Allies Hacked 1 | . . . . . . . . 1 . . . . . . . . Hacks Repelled . | . . . . . . . . . . . . . . . . . Allies | -11 -10 -10 -10 -9 -8 -7 -6 -6 -6 -6 -5 -5 -5 -5 -5 -4 -------- Run | Yrd Mat Min Exi Min Mat Fac Fac Low Low Dat Pro Fac Was Fac Ext Fac Total Allies 25 | . . 4 . . . 5 . . . . . . . . 15 1 Largest Group 8 | . . 4 3 1 . 4 4 1 1 1 1 . . . 8 1 Highest-Rated Group 219 | . . 71 55 8 . 121 121 10 9 9 9 . . . 219 26 Highest-Rated Ally 39 | . . 31 31 8 . 37 37 10 9 9 9 . . . 39 26 Total Orders 11 | . . . . . . 2 4 . 3 . . . . . . 2 STAY 3 | . . . . . . 1 . . 1 . . . . . . 1 ROAM 1 | . . . . . . . . . 1 . . . . . . . FOLLOW 3 | . . . . . . 1 . . 1 . . . . . . 1 GUARD 1 | . . . . . . . 1 . . . . . . . . . AID 3 | . . . . . . . 3 . . . . . . . . . Ally Attacks 145 | . . 22 . 2 . 19 18 . . . . . . . 84 . Total Damage 3023 | . . 243 . 21 . 297 892 . . . . . . . 1570 . Kills 28 | . . 6 . 1 . 4 4 . . . . . . . 13 . Allies Corrupted . | . . . . . . . . . . . . . . . . . Allies Melted 1 | . . . . . . . . . . . . . . . 1 . Intel | -11 -10 -10 -10 -9 -8 -7 -6 -6 -6 -6 -5 -5 -5 -5 -5 -4 ------- Run | Yrd Mat Min Exi Min Mat Fac Fac Low Low Dat Pro Fac Was Fac Ext Fac Robot Analysis Total 3 | . 2 . . . . 1 . . . . . . . . . . Derelict Logs Recovered 9 | . . 2 . 1 . . . 2 2 . 2 . . . . . Drone Launches . | . . . . . . . . . . . . . . . . . Drone Recoveries . | . . . . . . . . . . . . . . . . . Exploration | -11 -10 -10 -10 -9 -8 -7 -6 -6 -6 -6 -5 -5 -5 -5 -5 -4 ------------- Run | Yrd Mat Min Exi Min Mat Fac Fac Low Low Dat Pro Fac Was Fac Ext Fac Turns Passed 7067 | 64 452 624 429 461 1152 1288 390 265 220 36 178 45 43 187 370 863 Spaces Moved 7586 | 35 236 365 217 233 639 1538 646 614 457 84 336 83 102 326 384 1291 Core 3 | 1 . . . . . . . . . . . . . . . 2 Treads 1098 | 34 236 365 217 233 13 . . . . . . . . . . . Legs 590 | . . . . . 590 . . . . . . . . . . . Wheels . | . . . . . . . . . . . . . . . . . Hover . | . . . . . . . . . . . . . . . . . Flight 5895 | . . . . . 36 1538 646 614 457 84 336 83 102 326 384 1289 Fastest Speed 21 | 50 160 160 160 160 50 50 39 39 39 39 39 34 39 22 22 21 Average Speed 64 | 156 160 160 197 184 117 50 39 39 39 39 39 37 39 30 25 32 Slowest Speed 260 | 160 240 160 240 240 260 50 39 39 39 39 39 39 39 39 92 150 Overloaded Moves 98 | . . . . . . . . . . . . . . . . 98 Propulsion Burnouts . | . . . . . . . . . . . . . . . . . Robots Hopped 7 | . . . . . . 6 1 . . . . . . . . . Cave-ins Triggered . | . . . . . . . . . . . . . . . . . Exploration Rate (%) 44 | 3 35 91 60 47 45 29 17 81 61 71 58 5 77 11 48 24 Regions Visited 16 Branch Regions 8 Pre-discovered Areas 4 | . . 1 1 . . . . . 1 1 . . . . . . Known Exits Taken 4 | . . . . . 1 . . . . . 1 . . 1 1 . Unknown Exits Taken 10 | 1 1 1 1 1 . 1 1 1 1 1 . . . . . . Scrap Searched 9 | . . . . 2 . . . 1 4 . 2 . . . . . Spaces Dug 40 | . . . . . 7 12 8 1 . . . 2 . 2 1 7 Terrain Destroyed 485 | . . 43 . 58 76 12 8 1 49 . 77 2 . 43 38 78 Melee 40 | . . . . . 7 12 8 1 . . . 2 . 2 1 7 Projectile . | . . . . . . . . . . . . . . . . . AOE 445 | . . 43 . 58 69 . . . 49 . 77 . . 41 37 71 Terrain Rammed . | . . . . . . . . . . . . . . . . . Walls Destroyed . | . . . . . . . . . . . . . . . . . Machines Disabled . | . . . . . . . . . . . . . . . . . Actions | -11 -10 -10 -10 -9 -8 -7 -6 -6 -6 -6 -5 -5 -5 -5 -5 -4 --------- Run | Yrd Mat Min Exi Min Mat Fac Fac Low Low Dat Pro Fac Was Fac Ext Fac Total 9188 | 41 276 389 218 249 922 1931 750 623 483 86 359 94 104 406 602 1655 Wait 809 | . 2 3 . 1 105 302 68 1 . 3 . . 3 58 48 215 Move 7557 | 34 235 364 216 232 638 1525 643 613 456 83 335 83 101 325 383 1291 Hop 7 | . . . . . . 6 1 . . . . . . . . . Pick Up 73 | 1 8 2 1 . 24 10 6 . . . 2 1 . 2 5 11 Fast Attach 56 | 6 3 . . 2 13 4 1 . 2 . . . . . 4 21 Attach 63 | . . . . . 6 4 4 . . . 3 3 . 6 14 23 Detach 38 | . . . . 1 . 3 . . 3 . . . . 2 12 17 Swap 49 | . 3 4 1 1 18 3 2 . 3 . 1 2 . 5 3 3 Drop 93 | . 6 3 . 2 32 11 5 . 5 . 1 2 . 3 7 16 Fire 159 | . 19 13 . 10 74 5 . . 13 . 11 . . 3 8 3 Melee 219 | . . . . . 12 58 20 9 1 . 6 3 . 2 53 55 Ram . | . . . . . . . . . . . . . . . . . Kick . | . . . . . . . . . . . . . . . . . Crush . | . . . . . . . . . . . . . . . . . Escape Stasis 54 | . . . . . . . . . . . . . . . 54 . Rewire . | . . . . . . . . . . . . . . . . . Trap 11 | . . . . . . . . . . . . . . . 11 . Miscellaneous . | . . . . . . . . . . . . . . . . . Route ------- -11/Scrapyard -10/Materials (discovered 2 exits: [*Mat] / *Min) -10/Mines (discovered 3 exits: [*Mat x2] / *Exi) -10/Exiles -9/Mines -8/Materials -7/Factory (discovered 2 exits: *Fac / [*Sto]) -6/Factory -6/Lower Caves -6/Lower Caves (discovered 2 exits: *Fac / *Dat) -6/Data Miner -5/Proximity Caves -5/Factory (discovered 2 exits: Fac / Ext) -5/Waste -5/Factory -5/Extension -4/Factory History --------- Turn | Location | Event 37 | -11/Scrapyard | Discovered new exit (range 15) 65 | -11/Scrapyard | Entered Materials 308 | -10/Materials | Build established: Mutant 309 | -10/Materials | Discovered new exit (range 14) 460 | -10/Materials | Discovered new exit (range 10) 517 | -10/Materials | Entered Mines 679 | -10/Mines | Learned location of 1 exit from Materials 696 | -10/Mines | Found the Drone Emporium 702 | -10/Mines | Found Prototype Device 745 | -10/Mines | Assisted by bots powering up and referring to "LRC-V3" 828 | -10/Mines | Escorted by a lone wolf Derelict 965 | -10/Mines | Received a Rocket Launcher from a helpful Derelict 970 | -10/Mines | Discovered new exit (range 14) 987 | -10/Mines | Assembled infested the area 1045 | -10/Mines | Learned location of Zion (-7) 1060 | -10/Mines | Discovered new exit (range 15) 1071 | -10/Mines | Discovered new exit (range 13) 1133 | -10/Mines | Deemed a non-threat by the Exiles lab entrance 1141 | -10/Mines | Entered Exiles 1141 | -10/Exiles | Accompanied by 3 allies 1181 | -10/Exiles | Met 8R-AWN 1210 | -10/Exiles | Met EX-HEX 1263 | -10/Exiles | Met EX-BIN 1282 | -10/Exiles | Aligned with FarCom system 1284 | -10/Exiles | Given EX-Vault access code 1321 | -10/Exiles | Opened EX-Vault 1336 | -10/Exiles | Found Flying Fortress v7 1387 | -10/Exiles | Warned to stay clear of 0b10 Research branches 1454 | -10/Exiles | Met EX-DEC 1541 | -10/Exiles | Discovered new exit (range 14) 1570 | -10/Exiles | Left Exiles lab with Flying Fortress v7 1570 | -10/Exiles | Entered Mines 1570 | -9/Mines | Accompanied by 2 allies 1572 | -9/Mines | Met a Derelict bent on vengeance 1880 | -9/Mines | Learned location of 1 exit from Proximity Caves 2020 | -9/Mines | Discovered new exit (range 5) 2031 | -9/Mines | Entered Materials 2031 | -8/Materials | Evolved 4 slots: Propulsion x2, Utility x2 2032 | -8/Materials | Identified exit to Factory 2606 | -8/Materials | Repaired Med. Storage Unit 2635 | -8/Materials | Repaired Lrg. Storage Unit 3183 | -8/Materials | Entered Factory 3183 | -7/Factory | Evolved 2 slots: Utility x2 3892 | -7/Factory | Discovered new exit (range 16) 4194 | -7/Factory | Discovered new exit (range 7) 4227 | -7/Factory | Fabricated P-60 Hacker? 4349 | -7/Factory | Fabricated P-60 Hacker? 4471 | -7/Factory | Entered another Factory area 4471 | -6/Factory | Accompanied by 4 allies 4471 | -6/Factory | Evolved 2 slots: Propulsion x1, Utility x1 4670 | -6/Factory | Build established: Commander-Mutant 4786 | -6/Factory | Discovered new exit (range 4) 4861 | -6/Factory | Entered Lower Caves 4861 | -6/Lower Caves | Accompanied by 1 ally 4895 | -6/Lower Caves | Learned location of 1 exit from Factory 4937 | -6/Lower Caves | Learned Factory machine intel 5022 | -6/Lower Caves | Build established: Hacker-Mutant 5095 | -6/Lower Caves | Discovered new exit (range 7) 5096 | -6/Lower Caves | Encountered a Warlord checkpoint 5126 | -6/Lower Caves | Entered another Lower Caves area 5126 | -6/Lower Caves | Accompanied by 1 ally 5127 | -6/Lower Caves | Discovered new exit (range 16) 5129 | -6/Lower Caves | Learned location of Extension (-5) 5235 | -6/Lower Caves | Destroyed 7 combat bots 5241 | -6/Lower Caves | Learned Factory terminal intel 5304 | -6/Lower Caves | Acquired the password to a Derelict Tinkerer's latest research 5307 | -6/Lower Caves | Found Prototype Special Weapon 5307 | -6/Lower Caves | Identified Molecular Deconstructor 5343 | -6/Lower Caves | Discovered new exit (range 8) 5346 | -6/Lower Caves | Entered Data Miner 5346 | -6/Data Miner | Accompanied by 1 ally 5346 | -6/Data Miner | Discovered new exit (range 6) 5354 | -6/Data Miner | Met Data Miner 5362 | -6/Data Miner | Learned location of Section 7 (-2) 5362 | -6/Data Miner | Acquired the access code to Warlord's prototype stash 5370 | -6/Data Miner | Received God Mode back door access code from Data Miner 5382 | -6/Data Miner | Entered Proximity Caves 5382 | -5/Proximity Caves | Accompanied by 1 ally 5383 | -5/Proximity Caves | Identified exit to Factory 5385 | -5/Proximity Caves | Spotter reported a threat 5385 | -5/Proximity Caves | Spotter reported a threat 5437 | -5/Proximity Caves | Spotter reported a threat 5463 | -5/Proximity Caves | Learned Factory non-interactive machine intel 5469 | -5/Proximity Caves | Attracted the attention of an 0b10 outpost 5490 | -5/Proximity Caves | Spotter reported a threat 5543 | -5/Proximity Caves | Spotter reported a threat 5550 | -5/Proximity Caves | Attracted the attention of an 0b10 checkpoint 5559 | -5/Proximity Caves | Learned 8 Factory zone layouts 5560 | -5/Proximity Caves | Entered Factory 5560 | -5/Factory | Evolved 2 slots: Propulsion x1, Utility x1 5561 | -5/Factory | Identified exit to Factory 5562 | -5/Factory | Identified exit to Extension 5563 | -5/Factory | Loaded intel: 240 machine locations 5564 | -5/Factory | Loaded intel: 188 non-interactive machine locations 5565 | -5/Factory | Loaded intel: 26 terminal locations 5575 | -5/Factory | Spotted B-75 Beast 5605 | -5/Factory | Sucked down chute 5605 | -5/Factory | Entered Waste 5616 | -5/Waste | Spotted C-40 Crusher 5617 | -5/Waste | Spotted C-40 Crusher 5620 | -5/Waste | EMP discharged 5630 | -5/Waste | Spotted C-40 Crusher 5630 | -5/Waste | Spotted C-40 Crusher 5630 | -5/Waste | Spotted C-40 Crusher 5639 | -5/Waste | Spotted C-40 Crusher 5641 | -5/Waste | Discovered new exit (range 14) 5648 | -5/Waste | Entered Factory 5827 | -5/Factory | Discovered exit to Extension (range 14) 5835 | -5/Factory | Entered Extension 5841 | -5/Extension | Disrupted transfer network 5884 | -5/Extension | Rescued a captive Derelict 5885 | -5/Extension | Rescued a captive Derelict 5981 | -5/Extension | Rescued a captive Derelict 5982 | -5/Extension | Rescued a captive Derelict 6068 | -5/Extension | Build established: Hacker-Sprinter 6113 | -5/Extension | Rescued a captive Derelict 6114 | -5/Extension | Rescued a captive Derelict 6150 | -5/Extension | Spotted B-75 Beast 6195 | -5/Extension | Spotted B-75 Beast 6204 | -5/Extension | Discovered exit to Factory (range 3) 6205 | -5/Extension | Entered Factory 6205 | -4/Factory | Evolved 2 slots: Power x1, Utility x1 6232 | -4/Factory | Lost 7 parts (1p2n4u) 6235 | -4/Factory | Lost 5 allies 6464 | -4/Factory | Fabricated Cld. Nuclear Pulse Thruster? 6600 | -4/Factory | Lost 8 parts (1p3n4u) 6720 | -4/Factory | Lost 3 parts (1p2n) 6833 | -4/Factory | Core integrity fell below 50% 6906 | -4/Factory | Lost 7 parts (2p4n1w) 6989 | -4/Factory | Central database locked down 6996 | -4/Factory | Incoming investigation squad redirected 7037 | -4/Factory | Core integrity fell below 20% 7065 | -4/Factory | Spotted B-86 Titan 7068 | -4/Factory | Destroyed by B-86 Titan with Railgun Last Messages --------------- >>Query(MAIN.C) Ha ha ha. >>Alert(Check) Current Alert Level: 1-B >>Layout(Zone) Retrieving Zone 2U layout... Downloaded map data. 06996_ ALERT: Higher priority target reported, redirecting investigation. 07004_ A2N5P#Z,3J4ED#UW<%IX3BE 07033_ Acquired Imp. Reaction Control System. 07035_ System corrupted: Matter fused (-6). 07036_ Door malfunctions. 07045_ Imp. Reaction Control System destroyed. 07050_ Acquired System Shield. 07054_ System corrupted: Substantial component data lost. 07065_ Power Conduit explodes. 07065_ Manufacturing Mainframe disabled. 07068_ Hacking Suite destroyed. 07068_ Knocked back. 07068_ Penetrated by Slug. Map ----- +----------------------------------------------------+ | # ####?????????????????????????? # | | # #T ########################### # | | # # | | !!! / # | | !! # # | | !! # # | | # # | | # ##########+#############/##### # | | ######### #????# ! ## #? # | | ????????# #????# ## #? | | ????????# #????# """ """ ## # | | ????????# #????# """ """ ## # | | ????????# #????# """ """ ## " | | ????????# #????# ## # | | ????????# ##???# " ####### | | ????????# #B ??? " ?????? | | ????????# #BB###########" ?????? | | ???????? #?# ????? | | ????????? ###"" ????? | | ??????????== " #?????? | | ????????? == T ##"" "#?????? | | ????????? " ####;; " #???????? | | ????????? A #? # #???????? | | ????????? # "" " #?????????? | | ???????????""" """""" # "F """" #?????????? | | ???????????????"""""" @ "" """" #?????????? | | ?????????????????"""" % # "" """" ???????????? | | ?????????????????"""" # ?????????????? | | ?????????????????"""" #?#########?????????????? | | ?????????????????"""" #???????????????????????? | | ?????????????????"""" #???????????????????????? | | ??????????????????""" #???????????????????????? | | ??????????????????""" #???????????????????????? | | ?????????????????? ????????????????????????? | | ?????????????????? ????????????????????????? | | ?????????????????? w ????????????????????????? | | ??????????????????####+##????????????????????????? | | ?????????????????????????????????????????????????? | | ?????????????????????????????????????????????????? | | ?????????????????????????????????????????????????? | | ?????????????????????????????????????????????????? | | ?????????????????????????????????????????????????? | | ?????????????????????????????????????????????????? | | ?????????????????????????????????????????????????? | | ?????????????????????????????????????????????????? | | ?????????????????????????????????????????????????? | | ?????????????????????????????????????????????????? | | ?????????????????????????????????????????????????? | | ?????????????????????????????????????????????????? | | ?????????????????????????????????????????????????? | +----------------------------------------------------+ Best States ------------- Heat Dissipation 45 Energy Generation 35 Energy Capacity 300 Matter Stores 300 Matter Capacity 300 Sight Range 16 Robot Scan Range 15 Terrain Scan Density 10 Jamming Range 12 Additional Mass Support 9 Corruption Containment 12 Armor Coverage 525 Propulsion Shielding 66 Melee Speed Boost 20 Phase Shifting 5 Evasion (%) 75 Recoil Reduction 3 Offensive Hacking 30 Defensive Hacking 20 Item Schematics ----------------- Imp. Flight Unit | -7/Factory | Scanalyzed Combat Drone Bay | -6/Data Miner | Free Lgt. Regenerative Plating | -6/Data Miner | Free Cld. Nuclear Pulse Thruster | -6/Data Miner | Free Exp. Heat Sink | -6/Data Miner | Free Thunder Hammer | -6/Data Miner | Free Field Propulsion Array | -6/Data Miner | Free Point Defense Array | -6/Data Miner | Free Hvy. Disruptor Cannon | -6/Data Miner | Free Phase Gun | -6/Data Miner | Free Impulse Thruster | -6/Data Miner | Free Antimissile System | -6/Data Miner | Free Robot Schematics ------------------ P-60 Hacker | -7/Factory | Hacked E-15 Imp | -6/Data Miner | Free S-27 Virus | -6/Data Miner | Free O-32 Director | -6/Data Miner | Free A-27 Freighter | -6/Data Miner | Free G-50 Soldier | -6/Data Miner | Free L-61 Swordsman | -6/Data Miner | Free Fabricated ------------ P-60 Hacker | x2 | -7/Factory P-60 Hacker | x2 | -7/Factory Cld. Nuclear Pulse Thruster | x1 | -4/Factory Alien Tech Used ----------------- None Achievements -------------- A New Friend My Command Is Your Wish Challenges ------------ None Game ------ Seed ProtonXenonMicrothruster Manual? 0 Play Time 03:15:34 Cumulative 35.7 hours Start 2024.05.06 @ 19:18:47 End 2024.05.08 @ 14:40:42 Sessions 9 Manual Loads 0 Difficulty Rogue Special Mode None Game No. 25 Rogue 25 Adventurer 0 Explorer 0 Win Type - Total 0 Types 0/0/0/0/0/0/0/0/0 Lore% 24 Gallery% 35 Achievement% 29 Wizard Run 0 Options --------- Layout 0 ASCII 0 Keyboard 0 Movement Mouse Keybinds 0 Fullscreen 1 Font 24/Smallcaps Map View 76x50 Zoom Use 0% Tactical HUD 1 Map Filters NONE Filters NONE Steam 1 RUN: 588a3271-f026-43e6-b0b1-45394f98dde0